fUSD/lending_fUSD_20240117
["ID","MTS","AMOUNT","RATE_DAILY","PERIOD"]
[311924310,1705501843603,-6211.3261704,0.00021598,2]
[311924312,1705501843615,-4994.188368,0.00021598,2]
[311924314,1705501843626,-6023.8260089,0.00021598,2]
[311924593,1705501846250,-438.79417423,0.00021597,2]
[311924595,1705501846260,-164.38622754,0.00021597,2]
[311924624,1705501846513,-134.95151772,0.00021597,2]
[311924626,1705501846523,-7388.79770339,0.00021598,2]
[311924628,1705501846533,-1228.85614347,0.00021599,2]
[311924631,1705501846545,-896.03684187,0.00021599,2]
[311924633,1705501846556,-285.975,0.00021599,2]
[311924635,1705501846567,-967.46744386,0.00021599,2]
[311924638,1705501846583,-3618.23728068,0.00021599,2]
[311924640,1705501846594,-1308.41332213,0.00021599,2]
[311924642,1705501846604,-73385.79157249,0.00021599,2]
[311924644,1705501846616,-729.0,0.00021599,2]
[311924647,1705501846627,-14102.55814266,0.00021599,2]
[311924649,1705501846638,-70315.47400841,0.00021599,2]
[311924651,1705501846648,-721.61109505,0.00021599,2]
[311924653,1705501846659,-1078.23336459,0.00021599,2]
[311924655,1705501846670,-480.20693011,0.00021599,2]
[311924658,1705501846681,-671.12238823,0.00021599,2]
[311924659,1705501846692,-3650.175028,0.00021599,2]
[311924660,1705501846705,-268.20301315,0.00021599,2]
[311924661,1705501846730,-324.93079599,0.00021596,2]
[311924662,1705501846740,-10619.89107637,0.00021599,2]
[311924665,1705501846751,-10783.53504701,0.00021599,2]
[311924667,1705501846762,-420.11600238,0.00021599,2]
[311924669,1705501846773,-259.99239713,0.00021599,2]
[311924671,1705501846784,-287.8145,0.00021599,2]
[311924675,1705501846804,-269.98343738,0.00021597,2]
[311924676,1705501846813,-2430.00531562,0.00021599,2]
[311924679,1705501846824,-1595.32521933,0.00021599,2]
[311924681,1705501846836,-350.6445798,0.00021599,2]
[311925104,1705501927157,208.0,0.00025646,7]
[311925105,1705502284443,207.0,0.00024746,7]
[311925109,1705502644354,207.0,0.00024293,8]
[311925110,1705502646680,173.4,0.00029518,120]
[311925115,1705502715551,-368.21,0.00017756,2]
[311925116,1705502715578,-150.0,0.00017756,2]
[311925117,1705502715606,-150.0,0.00018,2]
[311925118,1705502715633,-301.25336037,0.0001803,2]
[311925119,1705502715658,-155.0,0.00018031,2]
[311925120,1705502715681,-384.58030079,0.00018031,2]
[311925121,1705502715706,-324.93079599,0.00018032,2]
[311925122,1705502715727,-207.69434348,0.00018033,2]
[311925123,1705502715748,-207.69434348,0.00018033,2]
[311925124,1705502715769,-2144.54575063,0.00019284,2]
[311925125,1705502715792,-173.4,0.00019678,2]
[311925126,1705502715815,-157.9,0.00019696,2]
[311925127,1705502715837,-177.32,0.0001977,2]
[311925128,1705502715860,-207.0,0.00019829,2]
[311925129,1705502715882,-155.05086068,0.0001992,2]
[311925130,1705502715904,-168.67,0.0001994,2]
[311925131,1705502715926,-368.21,0.0002002,2]
[311925132,1705502715951,-155.39,0.00020021,2]
[311925133,1705502715971,-150.0,0.00020086,2]
[311925134,1705502715992,-150.0,0.00020086,2]
[311925135,1705502716012,-371.15962209,0.00020087,2]
[311925136,1705502716032,-155.0,0.00020087,2]
[311925137,1705502716052,-571.26644582,0.00020087,2]
[311925138,1705502716072,-155.72417667,0.00020087,2]
[311925167,1705503032708,-158.09,0.00019653,2]
[311925168,1705503032720,-108.03897824,0.00019666,2]
[311925169,1705503032775,-53.95102176,0.00019666,2]
[311925170,1705503032785,-1000.0,0.00019667,2]
[311925171,1705503032795,-155.2,0.00019887,2]
[311925172,1705503032804,-155.2,0.00019981,2]
[311925173,1705503032814,-736.61,0.00020011,2]
[311925174,1705503032823,-733.86,0.00020044,2]
[311925175,1705503032834,-155.2,0.00020075,2]
[311925176,1705503032846,-714.56,0.00020085,2]
[311925177,1705503032857,-7274.41897819,0.00020086,2]
[311925178,1705503032871,-543.29728188,0.00020086,2]
[311925179,1705503032883,-4686.7388,0.00020086,2]
[311925180,1705503032951,-6964.90840136,0.00020086,2]
[311925181,1705503033008,-13902.55234903,0.00020086,2]
[311925182,1705503033018,-721.96,0.00020086,2]
[311925183,1705503033029,-728.21,0.00020086,2]
[311925184,1705503033041,-725.71,0.00020086,2]
[311925185,1705503033052,-734.2,0.00020086,2]
[311925186,1705503033062,-367.24100627,0.00020086,2]
[311925188,1705503033073,-724.96,0.00020086,2]
[311925189,1705503033084,-709.94,0.00020087,2]
[311925207,1705503033305,-732.89,0.00020087,2]
[311925209,1705503033319,-770.97,0.00020087,2]
[311925211,1705503033332,-2741.58,0.00020087,2]
[311925213,1705503033347,-7424.29566609,0.00020087,2]
[311925215,1705503033359,-15704.58808636,0.00020087,2]
[311925217,1705503033372,-1893.97254149,0.00020087,2]
[311925219,1705503033385,-718.1,0.00020087,2]
[311925222,1705503033399,-368.01428488,0.00020087,2]
[311925224,1705503033415,-155.91294937,0.00020087,2]
[311925226,1705503033429,-1070.61226192,0.00020087,2]
[311925228,1705503033446,-1024.54,0.00020087,2]
[311925230,1705503033459,-348.90102909,0.00020088,2]
[311925233,1705503033472,-300.68898993,0.00020088,2]
[311925235,1705503033484,-155.0,0.00020088,2]
[311925237,1705503033497,-499.99,0.00020088,2]
[311925239,1705503033511,-2188.85307791,0.00020088,2]
[311925241,1705503033524,-729.43,0.00020089,2]
[311925243,1705503033537,-25562.78,0.00020089,2]
[311925246,1705503033552,-819.6,0.00020089,2]
[311925248,1705503033563,-729.32,0.0002009,2]
[311925250,1705503033575,-161.11,0.00020091,2]
[311925252,1705503033585,-150.99,0.00020091,2]
[311925254,1705503033596,-1224.46,0.00020091,2]
[311925256,1705503033606,-155.2,0.00020169,2]
[311925258,1705503033620,-155.2,0.00020264,2]
[311925260,1705503033631,-732.98,0.00020334,2]
[311925262,1705503033642,-155.2,0.00020358,2]
[311925264,1705503033653,-730.7,0.00020366,2]
[311925266,1705503033663,-713.54,0.00020367,2]
[311925268,1705503033674,-713.77,0.00020368,2]
[311925270,1705503033685,-714.59,0.00020368,2]
[311925273,1705503033701,-716.69,0.0002037,2]
[311925275,1705503033712,-719.09,0.0002037,2]
[311925277,1705503033724,-719.24,0.00020372,2]
[311925279,1705503033735,-158.05,0.00020373,2]
[311925282,1705503033746,-159.75,0.0002041,2]
[311925284,1705503033758,-155.2,0.00020452,2]
[311925286,1705503033769,-722.02,0.00020494,2]
[311925288,1705503033781,-250.0,0.000205,2]
[311925290,1705503033792,-716.05,0.00020521,2]
[311925292,1705503033805,-155.2,0.00020546,2]
[311925294,1705503033817,-712.11,0.0002056,2]
[311925297,1705503033828,-713.41,0.0002056,2]
[311925299,1705503033839,-155.2,0.0002064,2]
[311925301,1705503033850,-721.71,0.00020719,2]
[311925303,1705503033861,-155.2,0.00020735,2]
[311925305,1705503033872,-732.23,0.00020743,2]
[311925307,1705503033882,-4200.796771,0.00020743,2]
[311925309,1705503033892,-720.59,0.00020745,2]
[311925311,1705503033902,-155.2,0.00020829,2]
[311925313,1705503033915,-155.2,0.00020923,2]
[311925315,1705503033927,-986.89395438,0.00021049,2]
[311925317,1705503033938,-158.05,0.00021052,2]
[311925319,1705503033950,-718.29,0.00021231,2]
[311925321,1705503033961,-986.89395439,0.0002128,2]
[311925323,1705503033971,-716.46,0.00021294,2]
[311925326,1705503033982,-161.99,0.00021378,2]
[311925328,1705503033998,-1857.92137233,0.0002138,2]
[311925330,1705503034009,-492.83979718,0.00021381,2]
[311925333,1705503034019,-538.7113452,0.00021381,2]
[311925335,1705503034031,-7725.49421759,0.00021381,2]
[311925337,1705503034042,-280.92885703,0.00021381,2]
[311925339,1705503034053,-1635.70179059,0.00021499,2]
[311925341,1705503034064,-2063.58340954,0.000215,2]
[311925343,1705503034076,-313.31030384,0.00021597,2]
[311925346,1705503034086,-766.28397364,0.00021597,2]
[311925348,1705503034097,-389.08953638,0.00021597,2]
[311925350,1705503034107,-155.29343631,0.00021597,2]
[311925352,1705503034118,-3935.89563762,0.00021597,2]
[311925354,1705503034129,-285.12589403,0.00021597,2]
[311925356,1705503034140,-445.36250617,0.00021597,2]
[311925358,1705503034151,-473.97561772,0.00021597,2]
[311925360,1705503034162,-156.87479774,0.00021597,2]
[311925363,1705503034172,-150.0,0.00021597,2]
[311925365,1705503034182,-715.2,0.00021598,2]
[311925367,1705503034192,-580.00560824,0.00021598,2]
[311925369,1705503034204,-320.14465283,0.00021598,2]
[311925371,1705503034215,-155.0,0.00021598,2]
[311925373,1705503034225,-157.87469733,0.00021598,2]
[311925375,1705503034236,-27209.48600285,0.00021598,2]
[311925445,1705503038226,-2133.24189365,0.00021598,2]
[311925446,1705503038443,-2.3638594,0.00021598,2]
[311925447,1705503038495,-869.17337382,0.00021598,2]
[311925448,1705503038507,-997.83561259,0.00021598,2]
[311925449,1705503038548,-3704.77177377,0.00021598,2]
[311925450,1705503038560,-892.17585639,0.00021598,2]
[311925451,1705503038572,-3779.24952656,0.00021598,2]
[311925452,1705503038585,-2610.40666984,0.00021598,2]
[311925453,1705503038597,-7511.69383817,0.00021598,2]
[311925454,1705503038613,-2900.0,0.00021598,2]
[311925455,1705503038629,-305.5195959,0.00021598,2]
[311925456,1705503038642,-82816.35054672,0.00021598,2]
[311925457,1705503038654,-24008.0721351,0.00021598,2]
[311925459,1705503038666,-2610.74051145,0.00021598,2]
[311925462,1705503038681,-1943.29667571,0.00021598,2]
[311925574,1705503039840,-508.62235554,0.00021598,2]
[311925597,1705503039964,-10148.12651512,0.00021598,2]
[311925599,1705503039977,-4265.39244857,0.00021598,2]
[311925602,1705503039989,-1758.93979561,0.00021598,2]
[311925604,1705503040001,-466.8185137,0.00021598,2]
[311925606,1705503040013,-2287.64533338,0.00021598,2]
[311925609,1705503040028,-263.92504753,0.00021598,2]
[311925611,1705503040040,-3254.98910633,0.00021598,2]
[311925618,1705503040092,-7934.56179113,0.00021598,2]
[311925621,1705503040104,-269.2302333,0.00021598,2]
[311925681,1705503040681,-219071.29041872,0.00021598,2]
[311925682,1705503040693,-71302.67400067,0.00021598,2]
[311925968,1705503043715,-539.62837223,0.00021597,2]
[311925970,1705503043724,-762.06416593,0.00021598,2]
[311925973,1705503043737,-1308.52824556,0.00021598,2]
[311925975,1705503043748,-697.54432177,0.00021598,2]
[311925978,1705503043763,-74801.61188761,0.00021598,2]
[311925980,1705503043781,-5709.64758417,0.00021598,2]
[311925983,1705503043792,-1081.67194983,0.00021598,2]
[311925985,1705503043804,-8087.63033189,0.00021598,2]
[311925987,1705503043815,-3334.73121983,0.00021598,2]
[311925989,1705503043827,-9281.31850203,0.00021598,2]
[311925992,1705503043838,-20893.56160479,0.00021598,2]
[311925994,1705503043849,-35966.63021378,0.00021598,2]
[311925996,1705503043861,-514.15776177,0.00021598,2]
[311925998,1705503043872,-604.8212046,0.00021598,2]
[311926000,1705503043904,-1645.740096,0.00021598,2]
[311926146,1705503045410,-474.79388609,0.00020087,2]
[311926156,1705503045477,-1282.92705,0.00020087,2]
[311926163,1705503045543,-5666.57473,0.00020087,2]
[311926164,1705503045553,-12328.90473396,0.00020087,2]
[311926165,1705503045562,-7210.52053626,0.00021598,2]
[311926166,1705503045612,-344.50000044,0.00021598,2]
[311926167,1705503045632,-496.28,0.00021598,2]
[311926168,1705503045644,-122570.50936277,0.00021598,2]
[311926169,1705503045653,-54424.09208766,0.00021599,2]
[311926170,1705503045663,-4717.0007,0.00021599,2]
[311926171,1705503045673,-5000.0,0.00021599,2]
[311926172,1705503045682,-1000.0,0.00021599,2]
[311926173,1705503045692,-269.1517,0.00021599,2]
[311926174,1705503045702,-500.0,0.00021599,2]
[311926175,1705503045712,-6616.95607771,0.000216,2]
[311926176,1705503045725,-1878.84,0.000216,2]
[311926177,1705503045736,-1269.51983804,0.000216,2]
[311926178,1705503045753,-416.82448629,0.000216,2]
[311926179,1705503045763,-476.13788661,0.000217,2]
[311926186,1705503147045,1211.20936,0.00027,7]
[311926195,1705503410305,2573.0,0.0003,120]
[311926207,1705503871568,-167.79420821,0.00018728,2]
[311926208,1705503871592,-362.87,0.00018728,2]
[311926209,1705503871614,-69.33579179,0.00020087,2]
[311926210,1705503936892,-1773.10201481,0.00020087,2]
[311926211,1705503936915,-3516.6789443,0.00020087,2]
[311926212,1705503936943,-728.44,0.00020087,2]
[311926213,1705503936964,-718.47,0.00020087,2]
[311926214,1705503936988,-722.73,0.00020087,2]
[311926215,1705503937010,-717.2,0.00020087,2]
[311926216,1705503937033,-710.23,0.00020087,2]
[311926217,1705503937056,-711.54,0.00020087,2]
[311926218,1705503937080,-160.45,0.00020742,2]
[311926219,1705503937104,-200.0,0.00020792,2]
[311926220,1705503937127,-154.22,0.00020803,2]
[311926221,1705503937153,-197.31,0.00020807,2]
[311926222,1705503937175,-3186.46864652,0.00020846,2]
[311926223,1705503937202,-150.97967695,0.000209,2]
[311926224,1705503937227,-171.39,0.00020917,2]
[311926225,1705503937251,-362.87,0.00020992,2]
[311926226,1705503937272,-330.28,0.00020992,2]
[311926227,1705503937295,-1500.0,0.00021,2]
[311926228,1705503937315,-1500.0,0.00021,2]
[311926229,1705503937569,-1500.0,0.00021,2]
[311926230,1705503937593,-1429.14,0.00021,2]
[311926231,1705503937619,-165.75,0.00021029,2]
[311926232,1705503937644,-4268.31,0.00021029,2]
[311926233,1705503937666,-719.0,0.00021153,2]
[311926234,1705503940892,-150.0,0.00021296,2]
[311926235,1705503949013,729.54,0.00020087,2]
[311926236,1705503957402,840.0,0.0002086,2]
[311926237,1705503975176,-175.74,0.00021296,2]
[311926238,1705503975198,-1299.13,0.00021296,2]
[311926239,1705503975220,-499.99,0.00021296,2]
[311926240,1705503975244,-713.24,0.00021296,2]
[311926241,1705503975266,-154.22,0.00021345,2]
[311926242,1705503981375,150.91173197,0.0002,2]
[311926243,1705503983065,361.01193029,0.0002086,2]
[311926244,1705503989779,283.07357979,0.0002086,2]
[311926245,1705503991314,373.21635855,0.0002086,2]
[311926246,1705504005080,170.36711682,0.0002086,2]
[311926249,1705504069936,-372.06,0.00018824,2]
[311926250,1705504069962,-158.63,0.00020794,2]
[311926251,1705504069987,-161.11,0.00020822,2]
[311926252,1705504070010,-721.43,0.00020831,2]
[311926253,1705504070033,-456.77,0.0002084,2]
[311926254,1705504192329,-259.67,0.0002084,2]
[311926255,1705504192352,-161.77,0.00020846,2]
[311926256,1705504192373,-734.32,0.00020852,2]
[311926257,1705504192393,-189.94691311,0.0002086,2]
[311926258,1705504192418,-288.16026452,0.0002086,2]
[311926259,1705504194238,395.12021724,0.00020839,2]
[311926260,1705504194729,289.08,0.00020735,2]
[311926261,1705504207363,262.6579,0.0002076,2]
[311926262,1705504212188,-175.57,0.0002089,2]
[311926263,1705504212210,-372.06,0.00021088,2]
[311926264,1705504212232,-719.4,0.00021176,2]
[311926265,1705504212256,-158.63,0.00021257,2]
[311926266,1705504212275,-485.59833642,0.000213,2]
[311926267,1705504212295,-394.79147818,0.000213,2]
[311926268,1705504212316,-158.96032404,0.00021416,2]
[311926269,1705504212338,-444.28508013,0.00021515,2]
[311926270,1705504212357,-263.27381778,0.00021515,2]
[311926271,1705504212376,-1202.95567145,0.00021515,2]
[311926272,1705504212396,-726.46,0.00021516,2]
[311926273,1705504212416,-155.0,0.00021516,2]
[311926274,1705504212439,-20380.54630882,0.00021516,2]
[311926275,1705504212459,-735.83,0.00021516,2]
[311926276,1705504212478,-896.0369,0.00021517,2]
[311926277,1705504212497,-86996.8025,0.00021517,2]
[311926278,1705504212516,-191.8,0.00021517,2]
[311926279,1705504212535,-2287.64622264,0.00021579,2]
[311926280,1705504212554,-1418.70619367,0.00021617,3]
[311926281,1705504212575,-858.913,0.00021617,2]
[311926282,1705504212595,-6874.4139,0.00021617,2]
[311926283,1705504212616,-75676.594972,0.00021617,2]
[311926303,1705504231563,-1551.3373324,0.00021617,2]
[311926304,1705504231576,-770.0,0.00021617,2]
[311926305,1705504231657,-340.11123817,0.00021617,2]
[311926306,1705504231737,-1000.0,0.00021617,2]
[311926307,1705504231827,-605.0,0.00021617,2]
[311926345,1705504233772,-639.29473813,0.00021617,2]
[311926346,1705504233784,-424.3,0.00021617,2]
[311926353,1705504238706,-155.0,0.00021616,2]
[311926354,1705504238718,-1533.60419807,0.00021617,2]
[311926356,1705504239047,-42305.75380542,0.00021617,2]
[311926362,1705504239168,-308.55918947,0.00021617,2]
[311926365,1705504239180,-1057.13580103,0.00021617,2]
[311926367,1705504239191,-8995.77857798,0.00021617,2]
[311926370,1705504239206,-998.17979973,0.00021617,2]
[311926373,1705504239227,-13926.5901476,0.00021617,2]
[311926375,1705504239238,-5000.0,0.00021617,2]
[311926377,1705504239248,-39825.7225,0.00021617,2]
[311926379,1705504239257,-9367.06157588,0.00021617,2]
[311926381,1705504239267,-400.0,0.00021644,2]
[311926383,1705504239275,-280.14979655,0.00021679,2]
[311926385,1705504239285,-371.15962209,0.00021699,2]
[311926388,1705504239295,-1016.33510427,0.00021699,2]
[311926390,1705504239304,-10970.78797759,0.000217,2]
[311926392,1705504239314,-244.13617966,0.00021706,2]
[311926394,1705504239324,-150.0,0.00021716,2]
[311926396,1705504239334,-158.63,0.00021719,2]
[311926398,1705504239343,-19126.13858845,0.000218,2]
[311926400,1705504239353,-100000.0,0.000218,2]
[311926402,1705504239362,-7841.8493,0.000218,2]
[311926405,1705504239372,-1000.0,0.000218,2]
[311926407,1705504239382,-214.9954,0.000218,2]
[311926409,1705504239391,-412.7749,0.000218,2]
[311926411,1705504239400,-245000.0,0.000218,2]
[311926412,1705504239410,-373.92729037,0.00021806,2]
[311926414,1705504239419,-811.16206762,0.00021812,2]
[311926416,1705504239429,-559.75881912,0.00021812,2]
[311926419,1705504239438,-155.0,0.00021812,2]
[311926421,1705504239449,-318.525335,0.00021812,2]
[311926423,1705504239459,-305.66016086,0.00021812,2]
[311926425,1705504239469,-1706.15282945,0.00021812,2]
[311926427,1705504239478,-223.49162543,0.00021812,2]
[311926429,1705504239488,-271.63336964,0.00021812,2]
[311926431,1705504239501,-155.37542855,0.00021812,2]
[311926433,1705504239511,-2389.24486179,0.00021812,2]
[311926435,1705504239521,-158.80468362,0.00021812,2]
[311926437,1705504239531,-408.42400347,0.00021813,2]
[311926439,1705504239540,-5374.65734713,0.00021813,2]
[311926441,1705504239550,-859.04598054,0.00021813,2]
[311926443,1705504239560,-371.76738385,0.00021813,2]
[311926445,1705504239570,-210.53657367,0.00021813,2]
[311926447,1705504239580,-225.78302,0.00021814,2]
[311926449,1705504239590,-2136.15568075,0.00021815,2]
[311926451,1705504239600,-604.3909,0.00021817,2]
[311926453,1705504239610,-31344.6193,0.00021817,2]
[311926455,1705504239619,-154.22,0.00021887,2]
[311926458,1705504239630,-3888.69037791,0.00021899,2]
[311926460,1705504239640,-503.84036235,0.00021899,2]
[311926462,1705504239650,-788.21123431,0.00021899,2]
[311926464,1705504239660,-92476.40067997,0.000219,2]
[311926466,1705504239672,-129339.16995834,0.000219,2]
[311926468,1705504239683,-171.39,0.000219,2]
[311926470,1705504239694,-197.75400443,0.00021916,2]
[311926472,1705504239707,-292.04437018,0.00021916,2]
[311926474,1705504239718,-190.17765672,0.00021916,2]
[311926476,1705504239728,-1119.28515655,0.00021916,2]
[311926478,1705504239737,-1238.69708023,0.00021916,2]
[311926480,1705504239747,-260.32877622,0.00021916,2]
[311926482,1705504239757,-291.36745925,0.00021916,2]
[311926484,1705504239768,-4509.74209554,0.00021916,2]
[311926486,1705504239779,-844.20155722,0.00021916,2]
[311926488,1705504239788,-283.73243787,0.00021916,2]
[311926490,1705504239798,-523.2831266,0.00021916,2]
[311926492,1705504239808,-500.0,0.00021917,2]
[311926494,1705504239818,-500.0,0.00021917,2]
[311926496,1705504239827,-500.0,0.00021917,2]
[311926498,1705504239838,-500.0,0.00021917,2]
[311926500,1705504239848,-500.0,0.00021917,2]
[311926502,1705504239859,-583.02,0.00021917,2]
[311926504,1705504239869,-585.81,0.00021917,2]
[311926506,1705504239878,-500.0,0.00021917,2]
[311926508,1705504239889,-500.0,0.00021917,2]
[311926510,1705504239899,-500.0,0.00021917,2]
[311926512,1705504239909,-500.0,0.00021917,2]
[311926514,1705504239918,-500.0,0.00021917,2]
[311926516,1705504239928,-615.48,0.00021917,2]
[311926518,1705504239937,-269.96379977,0.00021917,2]
[311926520,1705504239947,-500.0,0.00021917,2]
[311926522,1705504239959,-500.0,0.00021917,2]
[311926523,1705504239969,-500.0,0.00021917,2]
[311926524,1705504239980,-563.88,0.00021917,2]
[311926525,1705504239991,-500.0,0.00021917,2]
[311926526,1705504240000,-381.57487848,0.00021917,2]
[311926527,1705504240010,-322.09270629,0.00021917,2]
[311926528,1705504240019,-500.0,0.00021917,2]
[311926529,1705504240029,-500.0,0.00021917,2]
[311926530,1705504240040,-500.0,0.00021917,2]
[311926531,1705504240050,-500.0,0.00021917,2]
[311926533,1705504240059,-500.0,0.00021917,2]
[311926536,1705504240069,-500.0,0.00021917,2]
[311926540,1705504240079,-500.0,0.00021917,2]
[311926543,1705504240089,-500.0,0.00021917,2]
[311926545,1705504240098,-500.0,0.00021917,2]
[311926546,1705504240108,-451.31255509,0.00021917,2]
[311926549,1705504240118,-500.0,0.00021917,2]
[311926551,1705504240127,-544.17,0.00021917,2]
[311926553,1705504240137,-450.0,0.00021917,2]
[311926555,1705504240146,-500.0,0.00021917,2]
[311926557,1705504240155,-500.0,0.00021917,2]
[311926559,1705504240164,-500.0,0.00021917,2]
[311926561,1705504240173,-500.0,0.00021917,2]
[311926563,1705504240183,-500.0,0.00021917,2]
[311926565,1705504240193,-500.0,0.00021917,2]
[311926567,1705504240206,-500.0,0.00021917,2]
[311926569,1705504240214,-161.17,0.00021917,2]
[311926571,1705504240224,-500.0,0.00021917,2]
[311926573,1705504240232,-500.0,0.00021917,2]
[311926575,1705504240242,-500.0,0.00021917,2]
[311926577,1705504240251,-500.0,0.00021917,2]
[311926579,1705504240260,-224.44,0.00021917,2]
[311926581,1705504240269,-500.0,0.00021917,2]
[311926583,1705504240279,-500.0,0.00021917,2]
[311926585,1705504240288,-500.0,0.00021917,2]
[311926587,1705504240297,-500.0,0.00021917,2]
[311926589,1705504240307,-500.0,0.00021917,2]
[311926591,1705504240316,-405.17,0.00021917,2]
[311926593,1705504240326,-500.0,0.00021917,2]
[311926596,1705504240336,-500.0,0.00021917,2]
[311926598,1705504240346,-511.67578181,0.00021917,2]
[311926599,1705504240355,-500.0,0.00021917,2]
[311926602,1705504240364,-500.0,0.00021917,2]
[311926604,1705504240373,-500.0,0.00021917,2]
[311926606,1705504240383,-500.0,0.00021917,2]
[311926608,1705504240392,-500.0,0.00021917,2]
[311926610,1705504240402,-500.0,0.00021917,2]
[311926612,1705504240411,-500.0,0.00021917,2]
[311926614,1705504240421,-500.0,0.00021917,2]
[311926616,1705504240430,-500.0,0.00021917,2]
[311926618,1705504240440,-472.27,0.00021917,2]
[311926620,1705504240454,-500.0,0.00021917,2]
[311926622,1705504240465,-500.0,0.00021917,2]
[311926624,1705504240475,-510.93,0.00021917,2]
[311926626,1705504240484,-500.0,0.00021917,2]
[311926628,1705504240493,-500.0,0.00021917,2]
[311926630,1705504240502,-500.0,0.00021917,2]
[311926632,1705504240512,-500.0,0.00021917,2]
[311926634,1705504240521,-500.0,0.00021917,2]
[311926636,1705504240531,-500.0,0.00021917,2]
[311926638,1705504240541,-500.0,0.00021917,2]
[311926640,1705504240551,-500.0,0.00021917,2]
[311926642,1705504240560,-500.0,0.00021917,2]
[311926644,1705504240569,-500.0,0.00021917,2]
[311926646,1705504240578,-500.0,0.00021917,2]
[311926648,1705504240588,-500.0,0.00021917,2]
[311926650,1705504240598,-500.0,0.00021917,2]
[311926652,1705504240607,-500.0,0.00021917,2]
[311926654,1705504240617,-500.0,0.00021917,2]
[311926656,1705504240626,-500.0,0.00021917,2]
[311926659,1705504240636,-361.49877636,0.00021917,2]
[311926661,1705504240646,-500.0,0.00021917,2]
[311926663,1705504240655,-500.0,0.00021917,2]
[311926665,1705504240665,-500.0,0.00021917,2]
[311926667,1705504240675,-524.7,0.00021917,2]
[311926669,1705504240688,-500.0,0.00021917,2]
[311926671,1705504240697,-500.0,0.00021917,2]
[311926673,1705504240713,-500.0,0.00021917,2]
[311926675,1705504240723,-500.0,0.00021917,2]
[311926677,1705504240733,-500.0,0.00021917,2]
[311926679,1705504240743,-509.59,0.00021917,2]
[311926681,1705504240754,-500.0,0.00021917,2]
[311926683,1705504240765,-500.0,0.00021917,2]
[311926685,1705504240775,-500.0,0.00021917,2]
[311926687,1705504240784,-500.0,0.00021917,2]
[311926689,1705504240794,-513.19,0.00021917,2]
[311926691,1705504240803,-583.71,0.00021917,2]
[311926693,1705504240812,-500.0,0.00021917,2]
[311926695,1705504240822,-500.0,0.00021917,2]
[311926697,1705504240831,-500.0,0.00021917,2]
[311926699,1705504240841,-280.32,0.00021917,2]
[311926701,1705504240850,-500.0,0.00021917,2]
[311926703,1705504240860,-500.0,0.00021917,2]
[311926705,1705504240869,-302.13,0.00021917,2]
[311926707,1705504240878,-500.0,0.00021917,2]
[311926709,1705504240888,-462.49028069,0.00021917,2]
[311926711,1705504240897,-500.0,0.00021917,2]
[311926713,1705504240907,-500.0,0.00021917,2]
[311926715,1705504240916,-500.0,0.00021917,2]
[311926717,1705504240925,-500.0,0.00021917,2]
[311926719,1705504240935,-500.0,0.00021917,2]
[311926721,1705504240945,-500.0,0.00021917,2]
[311926723,1705504240957,-500.0,0.00021917,2]
[311926725,1705504240966,-500.0,0.00021917,2]
[311926727,1705504240975,-500.0,0.00021917,2]
[311926729,1705504240985,-590.06920447,0.00021917,2]
[311926731,1705504240994,-309.75,0.00021917,2]
[311926733,1705504241004,-500.0,0.00021917,2]
[311926735,1705504241013,-500.0,0.00021917,2]
[311926737,1705504241022,-500.0,0.00021917,2]
[311926739,1705504241031,-500.0,0.00021917,2]
[311926741,1705504241041,-500.0,0.00021917,2]